[Event "FIDE World Cup"]
[Site "Tbilisi"]
[Date "2017.09.21"]
[Round "6.3"]
[White "So, Wesley"]
[Black "Ding, Liren"]
[Result "1/2-1/2"]
[ECO "A13"]
[WhiteElo "2792"]
[BlackElo "2771"]
[Annotator "Sagar Shah"]
[PlyCount "135"]
[EventDate "2017.09.03"]
[EventType "k.o."]
[EventRounds "7"]
[EventCountry "GEO"]
[SourceTitle "CBM 181"]
[Source "ChessBase"]
[SourceDate "2017.11.10"]
[SourceVersion "1"]
[SourceVersionDate "2017.11.10"]
[SourceQuality "1"]
[TimeControl "1500+10"]

1. c4 {[%emt 0:00:00]} Nf6 {[%emt 0:00:03]} 2. Nf3 {[%emt 0:00:00]} e6 {
[%emt 0:00:03]} 3. g3 {[%emt 0:00:01]} d5 {[%emt 0:00:01]} 4. Bg2 {[%emt 0:00:
01]} dxc4 {[%emt 0:00:03]} 5. O-O {[%emt 0:00:04]} (5. Qa4+ {is the main line}
Nbd7 {is the most popular} (5... Bd7 {is also theory}) 6. Qxc4 c5 7. O-O b6 8.
d4 (8. Nc3 Bb7 9. d4 Rc8 10. Qd3 cxd4 11. Nxd4 Bxg2 12. Kxg2 Bb4 13. Ndb5 a6
14. Nd6+ Bxd6 15. Qxd6 Qe7 16. Qd3 b5 17. Bf4 e5 18. Bg5 h6 19. Nd5 Qe6 20.
Bxf6 Nxf6 21. Nxf6+ Qxf6 22. Qa3 Rc2 23. b3 Qc6+ 24. Kg1 Qc5 25. Qxa6 O-O 26.
a4 Rxe2 27. a5 e4 {0-1 (56) Grischuk,A (2771)-Eljanov,P (2717) Baku AZE 2015})
8... Bb7 9. Rd1 cxd4 10. Bg5 Be7 11. Nxd4 Bxg2 12. Kxg2 Qc8 13. Nd2 h6 14. Bxf6
Bxf6 15. Rac1 Qb7+ 16. N2f3 O-O 17. Qc6 Qxc6 18. Nxc6 Nc5 19. b4 Rfc8 20. Nfd4
e5 21. Nb3 Rxc6 22. bxc5 Rac8 23. Rd6 bxc5 24. Rxc6 Rxc6 25. Rxc5 Rxc5 26. Nxc5
{1/2-1/2 (34) Aronian,L (2782)-Gelfand,B (2750) Nice 2010}) 5... a6 {[%emt 0:
00:09]} 6. a4 {[%emt 0:01:46] Although this is the main move in the position
it has not been scoring so well mainly because of ...Nc6.} (6. Qc2 b5 7. Ne5
Nd5 8. d3 cxd3 9. Nxd3 {with good compensation.}) 6... Nc6 {[%emt 0:00:19]} 7.
Qc2 $6 {[%emt 0:01:15]} (7. Na3 {is much more common and much better.} Bxa3 8.
Rxa3 e5 9. b3 cxb3 10. Rxb3 O-O 11. Ba3 $44) 7... Na5 {[%emt 0:01:13]} ({
It could have been stronger to continue with} 7... e5 $1 8. Qxc4 (8. Na3 Bxa3
9. bxa3 (9. Rxa3 Be6 $15) 9... Be6 $15) 8... Be6 9. Qc2 e4 10. Ng5 Nd4 11. Nxe6
Nxc2 12. Nxd8 Nxa1 $15) 8. Na3 {[%emt 0:00:08] Now it transposes to the main
line} Qd5 $1 {[%emt 0:04:39]} (8... Nb3 $6 9. Rb1 $14 Bxa3 10. bxa3 b5 11. Bb2
Bb7 12. d3 O-O 13. axb5 axb5 14. dxc4 bxc4 15. Rbd1 Be4 16. Qxc4 Na5 17. Qb4
Bd5 18. Nh4 c5 19. Qc3 Qb8 20. Bxd5 exd5 21. Rxd5 Nc4 22. Ba1 Rxa3 23. Qxc4
Nxd5 24. Qxd5 Qa8 25. Qd1 f6 26. Nf5 c4 27. Qd4 Kh8 28. Bc3 Ra4 29. e4 Qc6 30.
e5 Raa8 31. Qg4 {1-0 (31) Tomashevsky,E (2688)-Sjugirov,S (2585) Ulan Ude 2009}
) 9. Rd1 {[%emt 0:02:56] White is looking to break the position with d3 and
take advantage of the queen on d5.} (9. Ne1 Qc5 10. d4 (10. d3) 10... cxd3 (
10... Qxd4 11. Bd2 Nb3 12. Rd1 Nxd2 13. Rxd2 Qa7 14. Nxc4 $11) 11. Qxd3 $44)
9... Bd7 {[%emt 0:00:08]} 10. d4 {[%emt 0:01:29]} (10. d3 Nb3 11. Ra2 (11. Rb1
Bxa4 $15) 11... Nxc1 12. Qxc1 Bxa4 (12... cxd3 13. Nc4 Qh5 14. Rxd3 Bc6 $13)
13. Nd2 Qc5 $15) 10... Qf5 {[%emt 0:04:07]} (10... Bc6 {According to Ding and
engines this move was stronger than what was played in the game.}) 11. Bd2 {
[%emt 0:03:17]} (11. Ne5 $5 Qxc2 12. Nxc2 Nd5 13. e4 (13. Ne3 Nxe3 14. Bxe3 Bd6
$15) (13. Bd2 {is probably the best} Nb3 14. Ra2 Nxd2 15. Rxd2 $11) 13... Nb6
14. Nxd7 Nxd7 15. Rb1 (15. Ra2 $5) 15... Nb3 16. Bf4 O-O-O 17. Ne3 Nb6 18. d5
exd5 19. exd5 Bd6 20. Bxd6 Rxd6 21. Bf1 Na5 22. Nf5 Rf6 23. Nxg7 Nxa4 24. Re1
Nb3 25. Ne8 Rb6 26. Re7 Nd2 27. d6 cxd6 28. Rd1 Kd8 29. Rxf7 Kxe8 30. Rg7 Nxf1
{0-1 (30) Melkumyan,H (2519)-Pashikian,A (2621) Yerevan 2009}) (11. Qc3 $2 Nb3
$1 {White will lose an exchange:} 12. Ra2 (12. Bd2 Nxa1 13. Rxa1 $17) 12... Nd5
13. Qxc4 Na5 14. e4 (14. Qd3) 14... Nxc4 15. exf5 Nxa3 16. fxe6 fxe6 17. Rxa3
Bxa3 18. bxa3 $19) 11... Qxc2 {[%emt 0:01:52]} 12. Nxc2 {[%emt 0:00:01]} Nb3 {
[%emt 0:00:01]} 13. Ra2 {[%emt 0:00:01]} Bc6 $1 {[%emt 0:00:10] The bishop
will be well placed on d5. Ding places it on the important diagonal before
White can play Ne5.} 14. Ne5 {[%emt 0:01:10]} Bd5 {[%emt 0:00:24]} 15. Bc3 {
[%emt 0:01:14]} c5 $1 {[%emt 0:02:17] Ding strikes in the centre at the right
time.} 16. a5 {[%emt 0:01:07]} (16. dxc5 Bxc5 17. Na1 $5 {an interesting idea
going for the exchange of the important knight on b3.} Rc8 18. Bxd5 Nxd5 19.
Nxc4 Nxa1 20. Raxa1 Be7 (20... Bxf2+ $6 {will not earn Black any advantage} 21.
Kxf2 Rxc4 22. Bxg7 Rg8 23. b3 Rc2 24. Bh6 $11) (20... Nxc3 21. bxc3 Bxf2+ 22.
Kxf2 Rxc4 23. Rab1 Rc7 $11 {[%csl Ga4,Gc3] White's pawn structure will give
Black some chances but White should be okay.}) 21. Rd4 O-O 22. e4 Nxc3 23. bxc3
Rc7 $15 {[%csl Rc4][%cal Ge7c5]}) 16... Rc8 {[%emt 0:00:44] All very simple
and strong moves.} 17. Ra4 $6 {[%emt 0:04:46] This move has a drawback and
Ding spots it quickly.} (17. dxc5 Bxc5 18. Na1 $5 $15) 17... cxd4 {[%emt 0:00:
06]} 18. Nxd4 {[%emt 0:00:57] Very alert and not making any mistakes.} Nc5 $1 {
[%emt 0:01:34] This is the key move, now the knight will land on e4 and it
will control important squares in White's camp.} 19. Raa1 {[%emt 0:00:00]} (19.
Ra2 Nfe4 $17 20. f3 (20. Bxe4 Nxe4 21. f3 Nxc3 22. bxc3 Bc5 $17 {As happened
in the game Black's bishop pair will give him a lasting edge in upcoming
endgame.}) 20... Nxc3 21. bxc3 f6 22. Ng4 e5 23. Ne3 Bf7 24. Ndf5 Rd8 25. Rad2
Rxd2 26. Rxd2 g6 27. Nd6+ Bxd6 28. Rxd6 Ke7 $17 {A very well placed knight on
c5 and White's weakness of the a5-pawn will surely guarantee Black a good
advantage.}) 19... Nce4 {[%emt 0:00:24]} 20. Bxe4 {[%emt 0:00:02]} Nxe4 {
[%emt 0:00:10]} 21. f3 {[%emt 0:00:02]} Nxc3 {[%emt 0:00:17]} 22. bxc3 {
[%emt 0:00:01] Black has not only the bishop pair, but also an extra pawn. He
is clearly better.} f6 {[%emt 0:00:45]} 23. Ng4 {[%emt 0:00:01]} Bc5 {[%emt 0:
00:29]} 24. Kf1 {[%emt 0:00:37]} Ke7 {[%emt 0:00:32] Connecting the rooks and
Black's king is ready to take an active part in the endgame.} 25. Rab1 {
[%emt 0:00:39]} Rhd8 {[%emt 0:01:21]} 26. e4 {[%emt 0:03:20]} Bxd4 {[%emt 0:00:
02]} 27. cxd4 {[%emt 0:00:30]} (27. Rxd4 Bc6 28. Rxd8 Rxd8 29. Ke2 Rd3 30. Rc1
$17 {White is passive and sooner or later, Black will create a passer on the
queenside.}) 27... Bc6 $17 {[%emt 0:00:09] The bishop comes to b5 and defends
everything.} 28. Rb4 {[%emt 0:00:01]} Bb5 {[%emt 0:00:25]} 29. Ne3 {[%emt 0:00:
08]} c3+ {[%emt 0:00:20]} 30. Kf2 {[%emt 0:00:04]} Rc6 {[%emt 0:01:02]} 31. Nc2
{[%emt 0:00:37]} (31. Rc1 $5 Rdc8 32. Rb3 g6 33. g4 {[%csl Rf5]} (33. Nd1 c2
34. Ne3 f5 35. exf5 exf5 36. Ke1 Kd6 37. Kd2 Re8 $17) 33... Kd6 34. Nd1 c2 35.
Ne3 Kd7 36. Rb2 $15 {White has good counterplay.}) 31... Rdc8 {[%emt 0:00:27]}
32. Na3 $2 {[%emt 0:00:44] A bad oversight by Wesley.} (32. Rc1 $17) 32... c2
$1 33. Rc1 Bd3 $1 {[%emt 0:00:17] It seems Wesley missed this move. The knight
on a3 has run out of squares!} 34. Rxb7+ {[%emt 0:00:19]} (34. Ke3 Rc3 $19)
34... R6c7 {[%emt 0:00:41]} 35. Rb2 {[%emt 0:00:27]} (35. Rxc7+ Rxc7 36. Ke3
Rc3 $19 {[%csl Ra3]}) 35... Rc3 {[%emt 0:00:09]} 36. Ra2 {[%emt 0:00:00]} f5 $1
{[%emt 0:01:56]} (36... g5 {[%cal Gg5g4] with the idea of ...g4 was also very
powerful.}) 37. e5 {[%emt 0:01:00]} g5 {[%emt 0:00:22]} (37... Rd8 38. Ke3 Be4+
39. Ke2 Bxf3+ 40. Kd2 Rb3 41. Nxc2 Be4 $19) 38. Ke1 {[%emt 0:00:12]} f4 $1 $19
{[%emt 0:00:04]} 39. Kd2 {[%emt 0:00:24]} Bf5 $6 {[%emt 0:00:04]} (39... fxg3
40. hxg3 h5 $19 {was the easiest way to win. The simple point being that White
has absolutely no moves. He cannot take the pawn on c2 because the h-pawn just
queens.}) 40. gxf4 {[%emt 0:00:23]} gxf4 {[%emt 0:00:02]} 41. Nxc2 {[%emt 0:00:
04]} R8c4 {[%emt 0:02:07]} (41... Rxf3 $19 {[%cal Gf3f2,Gf2a2]} 42. Nb4 Rg8 {
and the game should be over soon.}) 42. Rb2 {[%emt 0:00:07]} Rxf3 $2 {[%emt 0:
00:04] Ding Liren chooses the most inappropriate moment to take on f3.} (42...
Rc7 43. Ra2 Kf7 {Black just holds the position and White is at a loss for
moves.} (43... Rxf3 {is also fine now.}) 44. Rb2 Rxf3 $19) 43. Rb7+ $1 {
[%emt 0:00:41]} Ke8 {[%emt 0:00:13]} 44. Nb4 $1 {[%emt 0:00:27] With two
powerful moves, White has activated his position.} Rxd4+ {[%emt 0:00:24]} (
44... Rf2+ 45. Ke1 $11) 45. Ke2 {[%emt 0:00:06]} Re3+ {[%emt 0:00:04]} 46. Kf1
{[%emt 0:00:40]} Be4 $2 {[%emt 0:00:05]} (46... Rxe5 47. Nc6 Bd3+ 48. Kg1 Rg5+
49. Kf2 Rc4 50. Re7+ Kf8 51. Rxc4 Bxc4 52. Rxh7 $19) 47. Rg7 $1 {[%emt 0:00:29]
Of course Wesley is a machine! He defends amazingly. Black has lost all his
advantage now and a mate is threatened on c8.} Kf8 {[%emt 0:00:21]} 48. Ra7 {
[%emt 0:00:05]} Rd8 {[%emt 0:00:16]} 49. Nxa6 {[%emt 0:00:01]} Bd3+ {[%emt 0:
00:16]} 50. Kg1 {[%emt 0:00:13]} Rxe5 {[%emt 0:00:02]} 51. Rd1 $2 {[%emt 0:00:
23] this gives Black some chances.} (51. Nc5 $11) 51... Rxa5 {[%emt 0:00:16]} (
51... Rg5+ $1 {This is an important check which will give one extra tempo in
following line, in the game Black didn't get this chance.} 52. Kf2 Rxa5 53. Nc7
Rxa7 54. Nxe6+ Ke8 55. Nxd8 Ra2+ {This is the point of ...Rg5!} 56. Kg1 Be2 57.
Rd4 f3 $19 {and with his extra pawn White can fight for a win.} {The knight
can not come out so easily} 58. Nc6 {as after} (58. Kf2 Bd1+ 59. Kf1 Ba4 {
[%cal Ga4b5,Gb5f1,Gf3f2]} 60. Rxa4 Rxa4 61. Nc6 $19) 58... f2+ 59. Kxf2 Bb5+
60. Kg3 Bxc6 $19 {White will have a tough time to defend this endgame. Black
has a good plan of action he will bring his king up with bishop and rook help
and slowly push his pawns and try to win the h-pawn which will eventually win
the game.}) 52. Nc7 {[%emt 0:00:14]} Rxa7 {[%emt 0:00:42]} 53. Nxe6+ {[%emt 0:
00:00]} Ke7 {[%emt 0:00:13]} 54. Nxd8 {[%emt 0:00:03] This is the difference,
Black doesn't have the intermediate ...Ra2 check.} Bb5 {[%emt 0:00:07] Once
again Black has some chances to push.} 55. Rb1 $1 {[%emt 0:00:24]} Bd7 {
[%emt 0:00:09]} 56. Nb7 {[%emt 0:00:01]} Ra2 {[%emt 0:00:04]} 57. Nc5 {[%emt 0:
00:02]} Bc6 {[%emt 0:00:08]} 58. Nd3 {[%emt 0:00:13]} Rg2+ {[%emt 0:00:04]} 59.
Kf1 {[%emt 0:00:00]} f3 {[%emt 0:01:02]} 60. Rb6 {[%emt 0:00:32]} Bd5 {[%emt 0:
00:07]} 61. Rb4 {[%emt 0:00:24] With very little time on the clock, Wesley So
defends with great ingenuity.} Rxh2 {[%emt 0:00:02]} 62. Ne1 {[%emt 0:00:15]}
Ke6 {[%emt 0:00:14]} 63. Rf4 $1 {[%emt 0:00:03] And the f-pawn falls.} Rh1+ {
[%emt 0:00:30]} 64. Kf2 {[%emt 0:00:01]} Rh2+ {[%emt 0:00:01]} 65. Kg3 {
[%emt 0:00:10]} Re2 {[%emt 0:00:24]} 66. Nxf3 {[%emt 0:00:03]} Re3 {[%emt 0:00:
01]} 67. Kf2 {[%emt 0:00:01]} Rxf3+ {[%emt 0:00:01]} 68. Rxf3 {[%emt 0:00:00]
What an escape for the American grandmaster. While Wesley's defensive skills
were on show here, what I also feel should be highlighted is the tenacity of
the Chinese GM. After such a result it is easy to slump and lose the match.
But he kept his cool, offered a draw right out of the opening the next game,
gained back his composure and qualified to the Candidates by beating Wesley So.
} 1/2-1/2

[Event "FIDE World Cup"]
[Site "Tbilisi"]
[Date "2017.09.21"]
[Round "6.3"]
[White "Vachier Lagrave, Maxime"]
[Black "Aronian, Levon"]
[Result "1-0"]
[ECO "C84"]
[WhiteElo "2804"]
[BlackElo "2802"]
[Annotator "Sagar Shah"]
[PlyCount "127"]
[EventDate "2017.09.03"]
[EventType "k.o."]
[EventRounds "7"]
[EventCountry "GEO"]
[SourceTitle "CBM 181"]
[Source "ChessBase"]
[SourceDate "2017.11.10"]
[SourceVersion "1"]
[SourceVersionDate "2017.11.10"]
[SourceQuality "1"]
[TimeControl "1500+10"]

1. e4 {[%emt 0:00:00]} e5 {[%emt 0:00:05]} 2. Nf3 {[%emt 0:00:00]} Nc6 {
[%emt 0:00:04]} 3. Bb5 {[%emt 0:00:00]} a6 {[%emt 0:00:03]} 4. Ba4 {[%emt 0:00:
00]} Nf6 {[%emt 0:00:02]} 5. O-O {[%emt 0:00:01]} Be7 {[%emt 0:00:02]} 6. d3 {
[%emt 0:00:02]} b5 {[%emt 0:00:04]} 7. Bb3 {[%emt 0:00:01]} d6 {[%emt 0:00:02]}
8. a3 {[%emt 0:00:03]} O-O {[%emt 0:00:02]} 9. Nc3 {[%emt 0:00:01]} Bg4 {
[%emt 0:00:02]} 10. Be3 {[%emt 0:00:02]} Nd4 {[%emt 0:00:02]} 11. Bxd4 {
[%emt 0:00:01]} exd4 {[%emt 0:00:02]} 12. Nd5 {[%emt 0:00:02]} Nxd5 {[%emt 0:
00:02]} 13. Bxd5 {[%emt 0:00:01]} Rc8 {[%emt 0:00:02] The players repeat all
their moves from the second classical game of yesterday.} 14. Bc6 $5 {[%emt 0:
00:02] This move was played by Alina Kaslinskaya and this move is in my
opinion the only way in which White can deviate from what happened yesterday
and not be dead equal.} Bf6 {[%emt 0:00:03]} 15. a4 {[%emt 0:00:26]} Bd7 {
[%emt 0:00:03]} (15... Rb8 {is also possible.}) 16. Bxd7 {[%emt 0:00:48]} Qxd7
{[%emt 0:00:02]} 17. Qd2 {[%emt 0:00:18]} Qc6 {[%emt 0:01:07]} 18. b3 {[%emt 0:
01:39] I think Maxime has analysed this position in great depth, not move by
move, but by understanding the plans in the position. He realizes that his
knight is much more flexible and will use his kingside pawns to storm Black's
kingside. But first he must stabilise the queenside.} Rfe8 {[%emt 0:00:54]} 19.
Rfe1 {[%emt 0:00:02]} Qc5 {[%emt 0:01:28]} 20. g4 $5 {[%emt 0:02:17] The start
of a nice kingside pawn offensive.} b4 {[%emt 0:00:54]} 21. Re2 {[%emt 0:01:43]
} c6 {[%emt 0:01:27]} 22. Rae1 {[%emt 0:00:34]} g6 {[%emt 0:03:59]} 23. h4 Re6
24. Kg2 {[%emt 0:00:39]} Rce8 {[%emt 0:02:08]} 25. Ng5 {[%emt 0:01:22]} R6e7 {
[%emt 0:00:45]} 26. f4 {[%emt 0:00:14] White is just building up the pressure.}
a5 {[%emt 0:00:04]} 27. Nf3 $6 {[%emt 0:03:48]} (27. Kh1 $14 {Getting ready to
transfer the rook to the h-file and later play h5 was much better.}) 27... h5
$1 {[%emt 0:00:10]} ({If Black makes a wasted move White's idea is} 27... Kh8
28. h5 $1 gxh5 29. g5 $16) 28. g5 {[%emt 0:00:01]} Bg7 {[%emt 0:00:03]} 29. Rf1
{[%emt 0:00:04]} Qa7 {[%emt 0:00:41]} 30. Qe1 {[%emt 0:00:07]} c5 $6 {[%emt 0:
01:55] This is a crucial waste of time.} (30... Qd7 $1 31. Qg3 d5 32. e5 c5 $11
) (30... d5 $1 31. e5 Qd7 32. Qg3 c5 $11) 31. Qg3 {[%emt 0:00:58]} Qd7 {
[%emt 0:00:40]} 32. Qh3 $1 {[%emt 0:00:24] Now there is no ...d5.} Qc6 {
[%emt 0:01:50]} (32... Qxh3+ 33. Kxh3 {White will break through with f5 at
some point which will give him the advantage.} d5 34. Nd2 $16) 33. f5 {[%emt 0:
02:32]} Ra7 {[%emt 0:02:51]} (33... d5 $1 34. Nd2 dxe4 35. Nxe4 c4 $1 36. bxc4
Rxe4 37. Rxe4 Rxe4 38. dxe4 Qxe4+ 39. Qf3 Qxc2+ 40. Rf2 Qxc4 $13) 34. Nd2 {
[%emt 0:02:37]} Rc7 {[%emt 0:00:49]} 35. Qf3 {[%emt 0:00:34]} Ra7 {[%emt 0:02:
40]} 36. Rfe1 {[%emt 0:01:14]} Qc7 {[%emt 0:01:05]} 37. Nc4 {[%emt 0:00:41]}
Be5 {[%emt 0:00:06]} 38. Rf1 {[%emt 0:00:07]} Qd8 {[%emt 0:00:19]} 39. Ref2 {
[%emt 0:00:37]} Bg7 {[%emt 0:00:28]} 40. Qf4 {[%emt 0:00:35]} Rd7 {[%emt 0:00:
17]} 41. Kg1 {[%emt 0:00:33]} Kh7 {[%emt 0:00:38]} 42. Qg3 {[%emt 0:00:08]} Kg8
{[%emt 0:00:20]} 43. Rf3 {[%emt 0:00:15]} d5 {[%emt 0:01:54]} 44. exd5 {
[%emt 0:00:14]} Rxd5 {[%emt 0:00:01]} 45. f6 {[%emt 0:00:24]} Bf8 {[%emt 0:00:
03]} 46. Re1 {[%emt 0:00:01]} Rxe1+ {[%emt 0:01:05]} 47. Qxe1 {[%emt 0:00:02]}
Bd6 {[%emt 0:00:09]} 48. Qe4 {[%emt 0:00:23]} Bc7 {[%emt 0:00:02]} 49. Rf2 {
[%emt 0:00:08]} Qd7 {[%emt 0:00:10]} 50. Re2 {[%emt 0:00:16]} Kh7 {[%emt 0:00:
12]} 51. Qg2 $6 {[%emt 0:00:29]} (51. Qf3) 51... Qf5 {[%emt 0:00:10]} 52. Re4 {
[%emt 0:01:28]} Rd7 {[%emt 0:00:18]} 53. Qf1 $1 {[%emt 0:00:09]} Qd5 {[%emt 0:
00:06]} 54. Qf3 {[%emt 0:00:08]} Qb7 {[%emt 0:00:12]} 55. Kg2 {[%emt 0:00:23]}
Qc8 {[%emt 0:00:02]} 56. Qe2 {[%emt 0:00:05]} Qb7 {[%emt 0:00:16]} 57. Kg1 {
[%emt 0:00:02]} Qd5 {[%emt 0:00:06]} 58. Ne5 {[%emt 0:01:00]} Bxe5 {[%emt 0:00:
14]} 59. Rxe5 {[%emt 0:00:02]} Qd6 {[%emt 0:00:09]} 60. Kg2 {[%emt 0:00:11]}
Rd8 {[%emt 0:00:14]} 61. Qe4 {[%emt 0:00:04]} Rd7 {[%emt 0:00:10]} 62. Re7 {
[%emt 0:00:17]} Qc7 {[%emt 0:00:07]} 63. Kh3 {[%emt 0:00:49]} Qc8 {[%emt 0:00:
04]} 64. Qe6 {[%emt 0:00:20] An excellent game by Maxime Vachier Lagrave} 1-0